lending/lending_fUSD_20240705
["ID","MTS","AMOUNT","RATE_DAILY","PERIOD"]
[331247420,1720156232795,-6740.42813405,0.00013472,2]
[331247421,1720156232805,-150.0,0.00013488,2]
[331247422,1720156232816,-254.25713924,0.00013516,2]
[331247423,1720156232826,-220.33475092,0.00013543,2]
[331247424,1720156232836,-609.52672337,0.00013543,2]
[331247425,1720156232847,-266.43574909,0.00013543,2]
[331247426,1720156232856,-150.0,0.00013563,2]
[331247427,1720156232867,-150.0,0.00013638,2]
[331247428,1720156232877,-2751.0,0.00013699,2]
[331247429,1720156232887,-200.0,0.00013699,2]
[331247430,1720156232897,-182.96,0.00013699,2]
[331247431,1720156232906,-200.0,0.000137,5]
[331247432,1720156232918,-150.0,0.00013712,2]
[331247433,1720156232928,-181.80173057,0.00013736,2]
[331247434,1720156232938,-242.56114406,0.00013736,2]
[331247435,1720156232948,-382.10267351,0.00013736,2]
[331247436,1720156232958,-203.19192297,0.00013736,2]
[331247437,1720156232968,-227.17477303,0.00013759,2]
[331247438,1720156232978,-150.0,0.00013787,2]
[331247439,1720156232988,-500.0,0.000138,5]
[331247440,1720156232998,-330.62611149,0.00013802,2]
[331247441,1720156233008,-155.0,0.00013849,2]
[331247442,1720156233019,-150.0,0.00013862,2]
[331247443,1720156233029,-826.2035,0.00013873,2]
[331247444,1720156233040,-2500.0,0.00013873,2]
[331247445,1720156233050,-156.4774398,0.00013889,2]
[331247446,1720156233060,-1517.6786,0.00013899,2]
[331247447,1720156233070,-22912.47774315,0.00013899,2]
[331247448,1720156233083,-413.36294669,0.00013899,2]
[331247449,1720156233095,-2641.95350454,0.00013899,2]
[331247450,1720156233107,-3398.02074401,0.00013899,2]
[331247451,1720156233119,-272.02,0.00013899,2]
[331247452,1720156233131,-27073.0,0.00013899,2]
[331247453,1720156233142,-1898.3477175,0.00013899,2]
[331247454,1720156233155,-5656.35932623,0.00013899,2]
[331247455,1720156233166,-979.38,0.00013899,2]
[331247456,1720156233180,-5674.73859651,0.00013899,2]
[331247457,1720156239196,-304.90815934,0.00013472,2]
[331247458,1720156239207,-245.59574261,0.00013899,2]
[331247459,1720156239220,-14373.61900005,0.00013899,2]
[331247461,1720156239233,-541.0,0.00013899,2]
[331247462,1720156239246,-724.13950184,0.00013899,2]
[331247464,1720156239259,-597.24,0.00013899,2]
[331247466,1720156239274,-28966.48607687,0.00013899,2]
[331247467,1720156239285,-486.3734,0.00013899,2]
[331247468,1720156239295,-155.81893636,0.00013899,2]
[331247469,1720156239306,-800.0,0.000139,5]
[331247470,1720156239320,-533.80385494,0.00013912,2]
[331247471,1720156239330,-150.50133858,0.00013912,2]
[331247472,1720156239340,-535.81611228,0.00013912,2]
[331247473,1720156239351,-336.57186794,0.00013912,2]
[331247474,1720156239361,-8880.25076999,0.00013919,2]
[331247475,1720156239370,-1905.04190532,0.00013919,2]
[331247476,1720156239381,-156.62970523,0.00013919,2]
[331247477,1720156239391,-181.44669515,0.00013919,2]
[331247478,1720156239401,-157.28009544,0.00013919,2]
[331247479,1720156239411,-150.0,0.00013937,2]
[331247480,1720156239421,-4061.1978,0.00013973,2]
[331247481,1720156239431,-1399.3,0.00013973,3]
[331247482,1720156239441,-240.0,0.00013976,2]
[331247483,1720156239451,-183.44772533,0.0001399,2]
[331247484,1720156239461,-2268.49159668,0.00013999,2]
[331247485,1720156239471,-500.0,0.00013999,2]
[331247486,1720156239482,-500.0,0.00013999,2]
[331247487,1720156239492,-521.07615871,0.00013999,2]
[331247488,1720156239503,-573.35611814,0.00013999,2]
[331247489,1720156239513,-500.0,0.00013999,2]
[331247490,1720156239526,-639.0535982,0.00013999,2]
[331247491,1720156239536,-500.0,0.00013999,2]
[331247492,1720156239547,-500.0,0.00013999,2]
[331247493,1720156239557,-500.0,0.00013999,2]
[331247494,1720156239567,-500.0,0.00013999,2]
[331247495,1720156239577,-500.0,0.00013999,2]
[331247496,1720156239592,-500.0,0.00013999,2]
[331247497,1720156239602,-500.0,0.00013999,2]
[331247498,1720156239613,-500.0,0.00013999,2]
[331247499,1720156239623,-500.0,0.00013999,2]
[331247500,1720156239633,-500.0,0.00013999,2]
[331247501,1720156239643,-500.0,0.00013999,2]
[331247502,1720156239653,-500.0,0.00013999,2]
[331247503,1720156239674,-256.14834944,0.00013999,2]
[331247504,1720156239690,-243.85165056,0.00013999,2]
[331247505,1720156239701,-500.0,0.00013999,2]
[331247506,1720156239712,-500.0,0.00013999,2]
[331247507,1720156239723,-500.0,0.00013999,2]
[331247508,1720156239735,-500.0,0.00013999,2]
[331247509,1720156239745,-500.0,0.00013999,2]
[331247510,1720156239755,-500.0,0.00013999,2]
[331247511,1720156239766,-500.0,0.00013999,2]
[331247512,1720156239780,-389.2918688,0.00013999,2]
[331247513,1720156239791,-500.0,0.00013999,2]
[331247514,1720156239803,-500.0,0.00013999,2]
[331247516,1720156239815,-500.0,0.00013999,2]
[331247518,1720156239825,-500.0,0.00013999,2]
[331247520,1720156239836,-500.0,0.00013999,2]
[331247522,1720156239847,-421.55667141,0.00013999,2]
[331247524,1720156239857,-500.0,0.00013999,2]
[331247526,1720156239867,-526.93799634,0.00013999,2]
[331247528,1720156239878,-500.0,0.00013999,2]
[331247530,1720156239888,-450.0,0.00013999,2]
[331247532,1720156239899,-500.0,0.00013999,2]
[331247534,1720156239911,-500.0,0.00013999,2]
[331247536,1720156239922,-500.0,0.00013999,2]
[331247538,1720156239933,-500.0,0.00013999,2]
[331247540,1720156239943,-500.0,0.00013999,2]
[331247542,1720156239953,-500.0,0.00013999,2]
[331247544,1720156239963,-500.0,0.00013999,2]
[331247546,1720156239974,-500.0,0.00013999,2]
[331247548,1720156239984,-500.0,0.00013999,2]
[331247550,1720156239993,-209.92131875,0.00013999,2]
[331247552,1720156240004,-500.0,0.00013999,2]
[331247555,1720156240014,-500.0,0.00013999,2]
[331247557,1720156240027,-500.0,0.00013999,2]
[331247559,1720156240041,-500.0,0.00013999,2]
[331247561,1720156240051,-500.0,0.00013999,2]
[331247563,1720156240063,-242.44196702,0.00013999,2]
[331247565,1720156240074,-500.0,0.00013999,2]
[331247567,1720156240084,-500.0,0.00013999,2]
[331247569,1720156240095,-500.0,0.00013999,2]
[331247571,1720156240106,-500.0,0.00013999,2]
[331247573,1720156240117,-500.0,0.00013999,2]
[331247575,1720156240127,-500.0,0.00013999,2]
[331247577,1720156240137,-500.0,0.00013999,2]
[331247579,1720156240147,-500.0,0.00013999,2]
[331247581,1720156240157,-500.0,0.00013999,2]
[331247583,1720156240167,-500.0,0.00013999,2]
[331247585,1720156240177,-500.0,0.00013999,2]
[331247587,1720156240191,-500.0,0.00013999,2]
[331247590,1720156240201,-500.0,0.00013999,2]
[331247592,1720156240212,-500.0,0.00013999,2]
[331247594,1720156240222,-500.0,0.00013999,2]
[331247596,1720156240232,-500.0,0.00013999,2]
[331247598,1720156240243,-500.0,0.00013999,2]
[331247600,1720156240253,-500.0,0.00013999,2]
[331247602,1720156240264,-500.0,0.00013999,2]
[331247604,1720156240277,-500.0,0.00013999,2]
[331247607,1720156240288,-500.0,0.00013999,2]
[331247609,1720156240298,-500.0,0.00013999,2]
[331247611,1720156240309,-500.0,0.00013999,2]
[331247613,1720156240318,-500.0,0.00013999,2]
[331247615,1720156240328,-500.0,0.00013999,2]
[331247617,1720156240339,-500.0,0.00013999,2]
[331247619,1720156240349,-500.0,0.00013999,2]
[331247621,1720156240359,-500.0,0.00013999,2]
[331247623,1720156240370,-500.0,0.00013999,2]
[331247626,1720156240381,-500.0,0.00013999,2]
[331247629,1720156240391,-500.0,0.00013999,2]
[331247631,1720156240403,-500.0,0.00013999,2]
[331247633,1720156240413,-500.0,0.00013999,2]
[331247635,1720156240424,-500.0,0.00013999,2]
[331247637,1720156240435,-500.0,0.00013999,2]
[331247639,1720156240445,-252.87459321,0.00013999,2]
[331247641,1720156240455,-500.0,0.00013999,2]
[331247643,1720156240465,-500.0,0.00013999,2]
[331247645,1720156240475,-308.06614754,0.00013999,2]
[331247647,1720156240484,-774.86271598,0.00013999,2]
[331247649,1720156240494,-774.86271598,0.00013999,2]
[331247652,1720156240505,-774.86271598,0.00013999,2]
[331247654,1720156240515,-774.86271598,0.00013999,2]
[331247656,1720156240529,-774.86271598,0.00013999,2]
[331247658,1720156240539,-774.86271598,0.00013999,2]
[331247660,1720156240549,-774.86271598,0.00013999,2]
[331247662,1720156240559,-774.86271598,0.00013999,2]
[331247663,1720156240569,-774.86271598,0.00013999,2]
[331247665,1720156240580,-774.86271598,0.00013999,2]
[331247668,1720156240594,-774.86271598,0.00013999,2]
[331247670,1720156240604,-774.86271598,0.00013999,2]
[331247672,1720156240614,-774.86271598,0.00013999,2]
[331247674,1720156240624,-774.86271598,0.00013999,2]
[331247676,1720156240635,-774.86271598,0.00013999,2]
[331247678,1720156240645,-774.86271598,0.00013999,2]
[331247680,1720156240655,-774.86271598,0.00013999,2]
[331247681,1720156240665,-774.86271598,0.00013999,2]
[331247683,1720156240675,-774.86271598,0.00013999,2]
[331247685,1720156240685,-774.86271598,0.00013999,2]
[331247687,1720156240695,-774.86271598,0.00013999,2]
[331247689,1720156240704,-774.86271598,0.00013999,2]
[331247691,1720156240714,-774.86271598,0.00013999,2]
[331247693,1720156240724,-774.86271598,0.00013999,2]
[331247695,1720156240733,-774.86271598,0.00013999,2]
[331247697,1720156240744,-774.86271598,0.00013999,2]
[331247699,1720156240754,-774.86271598,0.00013999,2]
[331247700,1720156240764,-774.86271598,0.00013999,2]
[331247701,1720156240776,-774.86271598,0.00013999,2]
[331247702,1720156240786,-774.86271598,0.00013999,2]
[331247703,1720156240796,-774.86271598,0.00013999,2]
[331247704,1720156240807,-774.86271598,0.00013999,2]
[331247705,1720156240816,-774.86271598,0.00013999,2]
[331247706,1720156240826,-774.86271598,0.00013999,2]
[331247707,1720156240836,-774.86271598,0.00013999,2]
[331247708,1720156240847,-774.86271598,0.00013999,2]
[331247709,1720156240857,-774.86271598,0.00013999,2]
[331247710,1720156240867,-546.7308326,0.00013999,2]
[331247711,1720156240880,-398.74831256,0.00013999,2]
[331247712,1720156240890,-500.0,0.00013999,2]
[331247713,1720156240901,-593.14833595,0.00013999,2]
[331247714,1720156240911,-263.1280513,0.00013999,2]
[331247715,1720156240926,-236.8719487,0.00013999,2]
[331247716,1720156240936,-500.0,0.00013999,2]
[331247717,1720156240946,-500.0,0.00013999,2]
[331247718,1720156240956,-500.0,0.00013999,2]
[331247719,1720156240966,-34.0482493,0.00013999,2]
[331247720,1720156240979,-465.9517507,0.00013999,2]
[331247721,1720156240989,-500.0,0.00013999,2]
[331247722,1720156240999,-500.0,0.00013999,2]
[331247723,1720156241009,-774.86271598,0.00013999,2]
[331247724,1720156241019,-774.86271598,0.00013999,2]
[331247725,1720156241030,-774.86271598,0.00013999,2]
[331247726,1720156241044,-774.86271598,0.00013999,2]
[331247727,1720156241054,-774.86271598,0.00013999,2]
[331247728,1720156241064,-774.86271598,0.00013999,2]
[331247729,1720156241074,-774.86271598,0.00013999,2]
[331247730,1720156241083,-774.86271598,0.00013999,2]
[331247731,1720156241093,-499.99999999,0.00013999,2]
[331247732,1720156241103,-2000.0,0.00013999,2]
[331247733,1720156241113,-200.0,0.00013999,2]
[331247734,1720156241124,-200.0,0.00013999,2]
[331247735,1720156241134,-2000.0,0.00013999,2]
[331247736,1720156241144,-200.0,0.00013999,2]
[331247737,1720156241154,-263.58284568,0.00013999,2]
[331247738,1720156241166,-155.0,0.00013999,2]
[331247739,1720156241176,-121816.56367579,0.00014,2]
[331247740,1720156241188,-3459.87778686,0.00014,2]
[331247744,1720156241445,-789.5884849,0.00012329,2]
[331247745,1720156241473,-1489.51309191,0.00012329,2]
[331247746,1720156241484,-46666.31647506,0.00014,2]
[331247747,1720156241495,-9155.75038569,0.00014,2]
[331247748,1720156241506,-4608.46810061,0.00014,2]
[331247749,1720156241756,-1489.59503467,0.00014,2]
[331247750,1720156241769,-49980.43770584,0.00014,2]
[331247759,1720156243866,-200.0,0.000133,2]
[331247763,1720156243876,-1763.95623651,0.00013472,2]
[331247769,1720156243888,-2716.19427016,0.00013472,2]
[331247773,1720156243900,-2164.83372952,0.00013472,2]
[331247776,1720156243913,-95.44389786,0.00013472,2]
[331247778,1720156243923,-960726.20658249,0.00014,2]
[331247780,1720156243935,-2760.71463841,0.00014,2]
[331247782,1720156243947,-467845.74099536,0.00014,2]
[331247798,1720156244592,-3331.78010952,0.00014,2]
[331247799,1720156244606,-270.00257877,0.00014,2]
[331247800,1720156244617,-486.64475688,0.00014,2]
[331247801,1720156247067,-5410.00000001,0.00014,2]
[331247803,1720156247080,-345.66,0.00014,2]
[331247804,1720156247092,-1437.56601913,0.00014,2]
[331247805,1720156247104,-264.0928553,0.00014,2]
[331247806,1720156247116,-8525.63278518,0.00014,2]
[331247807,1720156247127,-32867.64421458,0.00014,2]
[331247808,1720156247139,-926.66902096,0.00014,2]
[331247809,1720156247151,-369.4483,0.00014,2]
[331247810,1720156502835,-5000.0,0.00031583,120]
[331247811,1720156503327,-1000.0,0.00031583,30]
[331247812,1720156503630,-660.1701513,0.00031583,120]
[331247813,1720156504109,-460600.0,0.00031583,120]
[331247814,1720156504424,-338.0,0.00031583,120]
[331247815,1720156504453,-10248.00726549,0.00031583,120]
[331247816,1720156504483,-200.0,0.00031583,30]
[331247817,1720156504518,-366.763142,0.00031583,30]
[331248020,1720156569761,150.0,0.00031583,30]
[331248499,1720156643584,2791.42364177,0.00011199,2]
[331248500,1720156695539,159.503403,0.00031583,30]
[331248501,1720156701503,828.8,0.00010574,2]
[331248504,1720157067342,299.48240965,0.00011199,2]
[331248505,1720157076989,1287.86499446,0.00011199,2]
[331248506,1720157105333,5000.0,0.00031568,30]
[331248507,1720157137923,18313.0,0.00031568,30]
[331248514,1720157327369,44585.0,0.00010741,2]
[331248515,1720157345698,787.36,9.963e-05,2]
[331248516,1720157357740,1287.86499446,0.00011199,2]
[331248517,1720157377303,1398.355335,0.00011199,2]
[331248519,1720157396067,-2073.27240969,0.00011775,2]
[331248520,1720157396102,-211.0,0.00011873,2]
[331248521,1720157396137,-7324.04792759,0.00011874,2]
[331248522,1720157396569,-9608.32033728,0.00011874,2]
[331248523,1720157396617,-577.30195871,0.00011874,2]
[331248530,1720157432870,-545.69922,0.0001172,2]
[331248532,1720157432889,-442.695,0.0001172,2]
[331248535,1720157432907,-973.17891265,0.0001172,2]
[331248537,1720157432924,-873.04,0.0001172,2]
[331248538,1720157432942,-568.27237892,0.0001172,2]
[331248539,1720157432957,-500.0,0.0001182,2]
[331248540,1720157432972,-4847.14,0.0001182,2]
[331248541,1720157432987,-6390.32977642,0.00011874,2]
[331248542,1720157433001,-1221.22,0.00011898,2]
[331248543,1720157433015,-175.57,0.00011904,2]
[331248544,1720157433033,-150.0,0.00011909,2]
[331248545,1720157433047,-430.82155097,0.00011925,2]
[331248546,1720157433063,-161.19035565,0.00011935,2]
[331248547,1720157433078,-300.0,0.00011951,2]
[331248548,1720157433093,-330.78,0.00011952,2]
[331248549,1720157433107,-2549.54,0.00011952,2]
[331248550,1720157433122,-224.99,0.00011952,2]
[331248551,1720157433137,-4953.62,0.00011952,2]
[331248552,1720157433150,-578.31,0.00012035,2]
[331248553,1720157433164,-7637.48,0.00012035,2]
[331248554,1720157433178,-1236.79,0.00012058,2]
[331248555,1720157433193,-787.36,0.00012227,2]
[331248556,1720157433208,-170.75,0.00012292,2]
[331248557,1720157433222,-250.0,0.00012292,2]
[331248558,1720157433236,-255.56085265,0.00012314,2]
[331248559,1720157433251,-331.78,0.00012363,2]
[331248560,1720157433265,-8896.63,0.00012363,2]
[331248561,1720157433279,-3246.3,0.00012363,2]
[331248562,1720157433293,-500.0,0.00012364,2]
[331248563,1720157433307,-1243.5,0.00012364,2]
[331248564,1720157433321,-499.99,0.00012364,2]
[331248565,1720157433335,-150.99,0.00012364,2]
[331248566,1720157433350,-1000.0,0.00012365,2]
[331248567,1720157433365,-7427.26,0.00012384,2]
[331248568,1720157433381,-331.78,0.00012397,2]
[331248569,1720157433395,-1843.88,0.00012413,2]
[331248570,1720157433410,-204.96,0.00012427,2]
[331248571,1720157433424,-331.78,0.00012431,2]
[331248572,1720157433438,-331.78,0.00012465,2]
[331248573,1720157433454,-250.0,0.00012489,2]
[331248574,1720157433469,-331.78,0.00012499,2]
[331248575,1720157433483,-331.78,0.00012533,2]
[331248576,1720157433498,-331.78,0.00012567,2]
[331248577,1720157433512,-269.52,0.00012569,2]
[331248578,1720157433527,-3653.25,0.00012587,2]
[331248579,1720157433542,-331.78,0.00012601,2]
[331248580,1720157433556,-164.67,0.00012618,2]
[331248581,1720157433570,-331.78,0.00012635,2]
[331248582,1720157433584,-164.67,0.00012639,2]
[331248583,1720157433599,-164.67,0.0001266,2]
[331248584,1720157433612,-331.78,0.00012669,2]
[331248585,1720157433628,-164.67,0.00012681,2]
[331248586,1720157433644,-200.0,0.00012691,2]
[331248587,1720157433659,-331.78,0.00012702,2]
[331248588,1720157433668,-331.78,0.00012736,2]
[331248589,1720157433678,-161.30477072,0.0001277,2]
[331248590,1720157433691,-170.47522928,0.0001277,2]
[331248591,1720157433701,-331.78,0.00012804,2]
[331248592,1720157433712,-168.5317152,0.00012838,2]
[331248593,1720157433723,-163.2482848,0.00012838,2]
[331248594,1720157433736,-128.5571152,0.00012872,2]
[331248595,1720157434013,-203.2228848,0.00012872,2]
[331248596,1720157434038,-331.78,0.00012906,2]
[331248597,1720157434048,-331.78,0.0001294,2]
[331248598,1720157434059,-331.78,0.00012974,2]
[331248599,1720157434070,-331.78,0.00013008,2]
[331248600,1720157434080,-173.59,0.00013116,2]
[331248601,1720157434089,-420.0,0.0001312,2]
[331248602,1720157434100,-178.61,0.0001318,2]
[331248603,1720157434114,-2641.29556774,0.00013574,2]
[331248604,1720157434128,-1318.57386024,0.00013574,2]
[331248605,1720157434140,-15430.62965507,0.00013574,2]
[331248606,1720157434152,-1256.0721124,0.00013574,2]
[331248607,1720157434163,-753.52079819,0.00013574,2]
[331248608,1720157434175,-1730.37921898,0.00013574,2]
[331248609,1720157434187,-71645.11804641,0.00013574,2]
[331248610,1720157434196,-588.91576377,0.00013574,2]
[331248611,1720157434206,-200.0,0.00013699,2]
[331248612,1720157434216,-10000.0,0.00013699,2]
[331248613,1720157434226,-176.78,0.00013699,2]
[331248614,1720157434236,-1517.6786,0.00013799,2]
[331248615,1720157434246,-1000.0,0.0001385,2]
[331248616,1720157434256,-3000.0,0.0001386,2]
[331248617,1720157434266,-500.0,0.00013888,2]
[331248618,1720157434276,-1839.0515,0.000139,2]
[331248619,1720157434285,-22912.4778,0.000139,2]
[331248620,1720157434295,-826.2035,0.000139,2]
[331248621,1720157434304,-2500.0,0.000139,2]
[331248622,1720157434314,-1000.0,0.00013911,2]
[331248623,1720157434323,-1722.01490196,0.00013999,2]
[331248624,1720157434333,-208.82288185,0.00013999,2]
[331248625,1720157434343,-181.80173057,0.00013999,2]
[331248626,1720157434353,-609.52672337,0.00013999,2]
[331248627,1720157434362,-203.19192297,0.00013999,2]
[331248628,1720157434372,-75719.67415505,0.00014,2]
[331248677,1720157445575,-3455.0680298,0.00011661,2]
[331248679,1720157445587,-2580.0,0.00011661,2]
[331248681,1720157445599,-289.805,0.00011661,2]
[331248683,1720157445611,-776.4470642,0.00011661,2]
[331248685,1720157445621,-156.4774398,0.00013999,2]
[331248687,1720157445630,-3628.96058752,0.00014,2]
[331248689,1720157445642,-413.89788262,0.00014,2]
[331248691,1720157445654,-291.195,0.00014,2]
[331248693,1720157445666,-272.51,0.00014,2]
[331248696,1720157445677,-2760.52306161,0.00014,2]
[331248698,1720157445689,-8145.08113333,0.00014,2]
[331248700,1720157445701,-1903.54310028,0.00014,2]
[331248703,1720157445712,-324.140288,0.00014,2]
[331248890,1720157447452,-1944.6647616,0.00014,2]
[331248998,1720157447986,-484.3267,0.00014,2]
[331249000,1720157447998,-346.51176822,0.00014,2]
[331249002,1720157448009,-285.51723754,0.00014,2]
[331249007,1720157448053,-547.30021554,0.00014,2]
[331250087,1720157619974,3000.0,0.00025975,120]
[331250088,1720157621180,643.60836038,0.00025975,120]
[331250091,1720157673074,150.5,0.0001499,30]
[331250092,1720157673623,150.5,0.0001498,30]
[331250093,1720157673943,150.5,0.0001497,30]
[331250094,1720157680740,-2400.0,0.00011675,2]
[331250097,1720157722843,10569.0,0.00031572,120]
[331250101,1720157771926,150.0,0.00031572,30]
[331250104,1720157866526,259.76474383,0.00011199,2]
[331250105,1720157866808,2871.00525901,0.00011199,2]
[331250107,1720157883961,6042.5377504,0.00025,120]
[331250109,1720157927147,374139.0,0.00010852,2]
[331250111,1720157931792,789.62,0.00010763,2]
[331250112,1720157934581,1000.20900646,0.00031572,30]
[331250114,1720157941742,2320.7428022,0.00031572,30]
[331250115,1720157969527,1013.16514783,0.00011199,2]
[331250116,1720157986702,1117.60984208,0.00011199,2]
[331250117,1720158051209,328.52145356,0.00011199,2]
[331250118,1720158076617,19813.39655712,0.00011199,2]
[331250119,1720158093128,155.32991129,0.00011199,2]
[331250120,1720158187391,242.56114406,0.00011199,2]
[331250121,1720158198815,717.97789183,0.00011199,2]
[331250122,1720158223931,382.10267351,0.00011199,2]
[331250123,1720158250270,330.62611149,0.00011199,2]
[331250124,1720158253833,311.1437994,0.00011199,2]
[331250125,1720158275882,250.75529608,0.00011199,2]
[331250126,1720158282846,295.1182402,0.00011199,2]
[331250127,1720158304585,407.47074942,0.00011199,2]
[331250128,1720158315471,474.20835544,0.00011199,2]
[331250132,1720158371530,220.33475092,0.00011199,2]
[331250133,1720158376258,1386.32762462,0.00011199,2]
[331250134,1720158387841,753.52079819,0.00011199,2]
[331250135,1720158392671,150.5,0.0001499,30]
[331250136,1720158393184,150.5,0.0001498,30]
[331250137,1720158394152,204.06,0.0001497,30]
[331250142,1720158441926,155.0,0.00011199,2]
[331250144,1720158469637,346.55980804,0.00011199,2]
[331250145,1720158474665,890.31151591,0.00011199,2]
[331250146,1720158500866,750.13,0.00010261,2]
[331250149,1720158580621,-1670.9317,0.00011675,2]
[331250152,1720158580865,-231.83737538,0.00011864,2]
[331250153,1720158580901,-161.19035565,0.00011964,2]
[331250154,1720158580937,-1221.22,0.00012164,2]
[331250155,1720158580975,-215.61,0.00012182,2]
[331250156,1720158581012,-150.0,0.00012191,2]
[331250157,1720158581046,-330.78,0.00012193,2]
[331250158,1720158581081,-5598.81936134,0.0001223,2]
[331250159,1720158581151,-351.43273668,0.0001223,2]
[331250174,1720158637643,-562.43544538,0.0001223,2]
[331250176,1720158637656,-1094.89027509,0.0001223,2]
[331250178,1720158637667,-330.70218151,0.0001223,2]
[331250180,1720158637677,-907.97368895,0.00012302,2]
[331250182,1720158637686,-322.97425801,0.00012314,2]
[331250184,1720158637695,-150.0,0.00012384,2]
[331250186,1720158637705,-500.0,0.000124,2]
[331250188,1720158637714,-9242.73719341,0.000124,2]
[331250190,1720158637726,-5260.72280659,0.000124,2]
[331250192,1720158637736,-8121.36046356,0.00012437,2]
[331250194,1720158637745,-289.07953561,0.000125,2]
[331250196,1720158637755,-150.99,0.000125,2]
[331250198,1720158637765,-2661.53,0.000125,2]
[331250200,1720158637774,-499.99,0.000125,2]
[331250202,1720158637785,-1517.31877091,0.000125,2]
[331250205,1720158637798,-3436.30122909,0.000125,2]
[331250207,1720158637807,-224.99,0.000125,2]
[331250209,1720158637817,-753.59226526,0.0001251,2]
[331250211,1720158637826,-2549.54,0.0001251,2]
[331250213,1720158637835,-578.31,0.0001251,2]
[331250215,1720158637844,-750.13,0.00012525,2]
[331250217,1720158637856,-219.5,0.00012531,2]
[331250219,1720158637865,-1236.79,0.00012532,2]
[331250220,1720158637876,-219.5,0.00012566,2]
[331250222,1720158637885,-150.0,0.00012577,2]
[331250224,1720158637895,-250.0,0.00012578,2]
[331250226,1720158637906,-250.0,0.00012578,2]
[331250228,1720158637916,-219.5,0.000126,2]
[331250230,1720158637926,-170.75,0.00012603,2]
[331250232,1720158637936,-4847.14,0.00012613,2]
[331250234,1720158637945,-500.0,0.00012627,2]
[331250236,1720158637955,-1843.88,0.00012627,2]
[331250238,1720158637964,-9999.99,0.00012627,2]
[331250240,1720158637973,-746.16282142,0.00012627,2]
[331250243,1720158637985,-2500.13717858,0.00012627,2]
[331250245,1720158637995,-219.5,0.00012634,2]
[331250247,1720158638004,-219.5,0.00012669,2]
[331250248,1720158638013,-297.68,0.00012696,2]
[331250250,1720158638023,-1243.5,0.00012696,2]
[331250252,1720158638033,-219.5,0.00012703,2]
[331250254,1720158638042,-3653.25,0.00012704,2]
[331250255,1720158638051,-12931.87640585,0.00012735,2]
[331250256,1720158638060,-219.5,0.00012738,2]
[331250257,1720158638069,-23900.0,0.00012745,2]
[331250258,1720158638078,-219.5,0.00012772,2]
[331250259,1720158638087,-219.5,0.00012806,2]
[331250260,1720158638096,-219.5,0.00012841,2]
[331250261,1720158638105,-219.5,0.00012875,2]
[331250262,1720158638115,-219.5,0.00012909,2]
[331250263,1720158638125,-219.5,0.00012944,2]
[331250264,1720158638134,-219.5,0.00012978,2]
[331250265,1720158638144,-219.5,0.00013012,2]
[331250266,1720158638156,-219.5,0.00013047,2]
[331250267,1720158638165,-219.5,0.00013081,2]
[331250268,1720158638175,-219.5,0.00013115,2]
[331250269,1720158638186,-219.5,0.0001315,2]
[331250270,1720158638195,-219.5,0.00013184,2]
[331250271,1720158638204,-164.67,0.00013217,2]
[331250272,1720158638214,-204.96,0.00013234,2]
[331250273,1720158638224,-164.67,0.00013239,2]
[331250274,1720158638233,-164.67,0.00013261,2]
[331250275,1720158638243,-2007.3015,0.00013276,2]
[331250277,1720158638253,-212.3777,0.00013276,2]
[331250279,1720158638263,-164.67,0.00013283,2]
[331250281,1720158638273,-200.0,0.00013376,2]